Cogmind - Beta 13 @@@ ROGUE MODE // 2024.07.11 @ 14:20:10 Player: Gabriel Result: Destroyed by Y-45 Defender with Heavy Assault Rifle Performance ------------- Evolutions (2) 1000 Regions Visited (3) 600 Robots Destroyed (70) 350 Value Destroyed (1982) 1982 Prototype IDs (6) 120 Alien Tech Used (0) 0 Bonus (13) 13 TOTAL SCORE: 4065 Bonus ------- High Alert Combat Kills 13 Cogmind --------- Core Integrity 0/550 Matter 275/300 Energy 100/100 System Corruption 5% Temperature Cool (9) Movement Core (50) Location -8/Materials Parts ------- > --- POWER (1) -------- (None) > --- PROPULSION (4) --- (None) > --- UTILITY (3) ------ (None) > --- WEAPON (3) ------- (None) > --- INVENTORY (5) ---- Deuterium Engine Heat Sink High-capacity Storage Unit High-capacity Matter Pod (200) Medium Armor Plating Peak State ------------ > --- POWER ------------ Deuterium Engine > --- PROPULSION ------- Aluminum Leg Aluminum Leg Aluminum Leg Improved Aluminum Leg > --- UTILITY ---------- Cooling System Large Storage Unit > --- WEAPON ----------- Lightning Gun Lightning Gun Lightning Gun > --- INVENTORY -------- Deuterium Engine Deuterium Engine Deuterium Engine Aluminum Leg Aluminum Leg Aluminum Leg Aluminum Leg Heat Sink High-capacity Storage Unit High-capacity Matter Pod Medium Armor Plating Lightning Gun Advanced Beam Rifle Enhanced Autogun Advanced EMP Blaster [Rating: 26] Favorites ----------- Power Deuterium Engine Engine Deuterium Engine Propulsion Aluminum Leg Leg Aluminum Leg Utility Large Storage Unit Device Cooling System Storage Large Storage Unit Weapon Lightning Gun Energy Gun Lightning Gun Ballistic Gun Light Assault Rifle Launcher Advanced EMP Blaster Build | -11 -10 -9 -8 ------- Run | Yrd Mat Mat Mat Slots Evolved 4 | . . 2 2 Power . | . . . . Propulsion 2 | . . 2 . Utility 1 | . . . 1 Weapon 1 | . . . 1 Parts Attached 66 | 6 10 18 32 Power 6 | 1 1 2 2 Engine 6 | 1 1 2 2 Core . | . . . . Reactor . | . . . . Propulsion 23 | 2 4 6 11 Treads . | . . . . Leg 23 | 2 4 6 11 Wheel . | . . . . Hover . | . . . . Flight . | . . . . Utility 8 | 1 1 3 3 Device 5 | . . 2 3 Storage 3 | 1 1 1 . Processor . | . . . . Hackware . | . . . . Protection . | . . . . Artifact . | . . . . Weapon 29 | 2 4 7 16 Energy Gun 23 | 2 3 6 12 Energy Cannon . | . . . . Ballistic Gun 4 | . 1 1 2 Ballistic Cannon . | . . . . Launcher 2 | . . . 2 Special Weapon . | . . . . Impact Weapon . | . . . . Slashing Weapon . | . . . . Piercing Weapon . | . . . . Special Melee Weapon . | . . . . Unidentified Prototypes 6 | . . 3 3 Corrupted Parts 2 | . 1 . 1 System Corruption 7 | . 2 . 5 Parts Lost 23 | . 5 . 18 Power 2 | . . . 2 Propulsion 12 | . 3 . 9 Utility 1 | . . . 1 Weapon 8 | . 2 . 6 Highest Loss Streak 10 | . 2 . 10 To Critical Strikes . | . . . . Average Slot Usage (%) 85 | . 79 97 77 Engine 10 | . 14 11 8 Leg 34 | . 26 43 32 Device 6 | . . 9 6 Storage 10 | . 14 11 8 Energy Gun 20 | . 19 21 19 Ballistic Gun 1 | . 4 . . Naked Turns 16 | . . . 16 Heaviest Build 45 | 14 19 37 45 Greatest Support 43 | 20 20 40 43 Greatest Overweight (x) 7 | 1 3 1 7 Average Overweight (x) . | . . . . Largest Inventory Capacity 15 | 8 10 15 15 Average Capacity 12 | 6 8 14 14 Most Carried 15 | 4 9 15 15 Average Carried 9 | 1 4 10 12 Final Capacity 15 | 8 10 15 5 Final Carried 15 | 1 8 15 5 Class Distribution -------------------- 39% | Scavenger-Mutant 36% | Mutant 22% | Scavenger-Gunner Dominant Class ---------------- Mutant | -10/Materials Scavenger-Mutant | -9/Materials Scavenger-Gunner | -8/Materials Resources | -11 -10 -9 -8 ----------- Run | Yrd Mat Mat Mat Matter Collected 1076 | 239 309 206 322 Remotely . | . . . . Salvage Created 2872 | 97 679 547 1549 Parts 157 | 6 41 34 76 Haulers Intercepted 4 | . 1 1 2 Recyclers Shooed 1 | . . . 1 Parts Field Recycled . | . . . . Retrieved Matter . | . . . . Parts Self-Destructed . | . . . . Prevented . | . . . . Kills | -11 -10 -9 -8 ------- Run | Yrd Mat Mat Mat Combat Hostiles Destroyed 49 | . 16 12 21 Guns 45 | . 15 11 19 AOE 2 | . 1 . 1 Classes Destroyed 13 | 2 5 1 5 Worker 5 | . 3 . 2 Tunneler 2 | 2 . . . Hauler 4 | . 1 1 2 Recycler 3 | 1 . . 2 Mechanic 1 | . . . 1 Operator 1 | . . . 1 Watcher 5 | . 2 2 1 Swarmer 8 | . 6 . 2 Grunt 32 | . 10 11 11 Brawler 1 | . . . 1 Duelist 1 | . . . 1 Sentry 5 | . . 1 4 Specialist 2 | . . . 2 Best Kill Streak 8 | 3 8 3 5 Combat Bots Only 6 | . 6 2 4 Max Kills in Single Turn 2 | 1 2 2 2 Gunslinging 1 | . 1 1 1 Exploded 1 | . 1 . 1 Melee . | . . . . Uniques/NPCs Destroyed . | . . . . Combat | -11 -10 -9 -8 -------- Run | Yrd Mat Mat Mat Hostile Shots Fired 353 | . 82 61 210 Missed 109 | . 27 22 60 Damage Taken 3696 | . 681 470 2545 Core 840 | . 191 97 552 Absorbed by Shields . | . . . . Regen/Repaired (Parts) 153 | . . 42 111 Core Remaining (%) 66 | 100 23 75 . Volleys Fired 165 | 7 53 53 52 Largest 3 | 2 2 2 3 Hottest 165 | 80 80 126 165 Shots Fired 357 | 14 100 105 138 Gun 354 | 14 100 105 135 Cannon . | . . . . Launcher 3 | . . . 3 Special . | . . . . Kinetic 19 | . 16 . 3 Thermal 124 | . 10 105 9 Explosive . | . . . . Electromagnetic 214 | 14 74 . 126 Robot Hit Streak 11 | 5 7 10 11 Robot Miss Streak 5 | 2 5 4 3 Penetration Max . | . . . . Secondary Targets 13 | . 5 2 6 Max Gunslinging Chain 1 | . 1 1 1 Shots Hit Robots 206 | 7 53 56 90 Core Hits 104 | 3 32 21 48 Critical Kills . | . . . . Critical Parts Destroyed . | . . . . Critical Strikes 9 | 1 . 6 2 Burn 6 | . . 6 . Corrupt 3 | 1 . . 2 Melee Attacks . | . . . . Impact . | . . . . Slashing . | . . . . Piercing . | . . . . Sneak Attacks . | . . . . Combat Hostiles . | . . . . Follow-up Attacks . | . . . . Damage Inflicted 4117 | 91 1137 829 2060 Guns 3435 | 91 766 829 1749 Cannons . | . . . . Explosions 661 | . 371 . 290 Melee . | . . . . Ramming 21 | . . . 21 Kinetic 136 | . 82 . 54 Thermal 1428 | . 416 829 183 Explosive . | . . . . Electromagnetic 2532 | 91 639 . 1802 Impact . | . . . . Slashing . | . . . . Piercing . | . . . . Highest Corruption 5 | . 4 1 5 Average Corruption 2 | . 3 1 5 Corruption Purged . | . . . . Corruption Blocked . | . . . . Effects 25 | . 4 4 17 Message Errors 7 | . 1 1 5 Matter Fused 6 | . 2 1 3 Heat Flow Errors 4 | . 1 1 2 Energy Discharges 3 | . . . 3 Data Loss (minor) 2 | . . . 2 Alerts 1 | . . 1 . Weapon Failures 2 | . . . 2 Overload Shots . | . . . . Overflow Damage 101 | . 89 . 12 Projectiles . | . . . . Explosions 101 | . 89 . 12 Melee . | . . . . Knockbacks . | . . . . Impact . | . . . . Kinetic . | . . . . Secondary . | . . . . Self-Inflicted Damage 208 | . 118 . 90 Shots 6 | . 2 . 4 Rammed . | . . . . Targets Rammed 2 | . . . 2 Kicked 2 | . . . 2 Crushed . | . . . . Highest Temperature 257 | 54 201 257 203 Average Temperature 66 | 24 64 105 49 Received Heat Transfer 1329 | . 231 234 864 Effects 3 | . . 3 . Interference 3 | . . 3 . Siege Activations . | . . . . Robots Corrupted 2 | . . . 2 Combat Hostiles 1 | . . . 1 Parts Fried 9 | . 1 . 8 Impact Corruptions . | . . . . Robots Melted 1 | . . 1 . Combat Hostiles 1 | . . 1 . Parts Melted 4 | . . 4 . Heat Transferred 3436 | . 500 2627 309 Parts Sabotaged . | . . . . Parts Stolen . | . . . . Parts Stripped . | . . . . Power Chain Reactions 6 | . 4 . 2 Alert | -11 -10 -9 -8 ------- Run | Yrd Mat Mat Mat Peak Influence 443 | 15 320 380 443 Initial 126 | . 9 126 100 Average 209 | 5 167 237 235 Maximum Alert Level 2 | . 1 1 2 Low Security (%) 45 | 100 65 30 39 Level 1 50 | . 34 69 49 Level 2 3 | . . . 10 Level 3 . | . . . . Level 4 . | . . . . Level 5 . | . . . . High Security . | . . . . Max Security . | . . . . Squads Dispatched 19 | . 5 5 9 Investigation 6 | . 2 3 1 Extermination . | . . . . Reinforcement 13 | . 3 2 8 Assault . | . . . . Garrison . | . . . . Intercept . | . . . . Searches Triggered . | . . . . Construction Impeded . | . . . . Haulers Reinforced . | . . . . Active Scanning Responses . | . . . . Cargo Convoy Interrupts . | . . . . Stealth | -11 -10 -9 -8 --------- Run | Yrd Mat Mat Mat Distress Signals 5 | . 1 1 3 Communications Jammed . | . . . . Distress Signals . | . . . . Times Spotted 90 | . 22 23 45 Peak Tracking Total 12 | . 5 4 12 Tactical Retreats 9 | . 1 . 8 Traps | -11 -10 -9 -8 ------- Run | Yrd Mat Mat Mat Traps Triggered 3 | . 2 1 . Indirectly . | . . . . Trap Hack Attempts . | . . . . Triggered . | . . . . Disarmed . | . . . . Reprogrammed . | . . . . Reused . | . . . . Traps Extracted . | . . . . Installed . | . . . . Triggered . | . . . . Machines | -11 -10 -9 -8 ---------- Run | Yrd Mat Mat Mat Machines Disabled 6 | . 1 . 5 Max in Single Turn 1 | . 1 . 1 Machines Repaired . | . . . . Machines Dismantled . | . . . . Machines Sabotaged . | . . . . Overloaded Fab Kills . | . . . . Hacking | -11 -10 -9 -8 --------- Run | Yrd Mat Mat Mat Machines Accessed 11 | . 2 5 4 Terminals 6 | . 2 2 2 Fabricators . | . . . . Repair Stations 4 | . . 2 2 Recycling Units . | . . . . Scanalyzers 1 | . . 1 . Garrison Access . | . . . . Total Hacks 39 | . 5 16 18 Successful 26 | . 2 10 14 Failed 13 | . 3 6 4 Catastrophic 2 | . . 2 . Database Lockouts . | . . . . Manual . | . . . . Terminals 15 | . 5 6 4 Fabricators . | . . . . Repair Stations 22 | . . 8 14 Recycling Units . | . . . . Scanalyzers 2 | . . 2 . Garrison Access . | . . . . Terminal Hacks 9 | . 2 3 4 Record 5 | . . 2 3 Robot Analysis 1 | . . 1 . Unreport Threat 1 | . . . 1 Locate Traps 1 | . 1 . . Dispatch Records 1 | . 1 . . Fabricator Hacks . | . . . . Repair Station Hacks 15 | . . 5 10 Scan Component 10 | . . 4 6 Repair 5 | . . 1 4 Recycling Unit Hacks . | . . . . Scanalyzer 2 | . . 2 . Insert Component 1 | . . 1 . Analyze 1 | . . 1 . Garrison Access Hacks . | . . . . Unauthorized Hacks . | . . . . Terminals . | . . . . Fabricators . | . . . . Repair Stations . | . . . . Recycling Units . | . . . . Scanalyzers . | . . . . Garrison Access . | . . . . Data Cores Recovered . | . . . . Used . | . . . . Hacking Detections 8 | . 2 4 2 Full Trace Events 5 | . 1 2 2 Feedback Events 1 | . . 1 . Corruption 1 | . . 1 . Feedback Blocked . | . . . . Robot Schematics Acquired . | . . . . Robots Built . | . . . . Authchips . | . . . . Time . | . . . . Total Robot Build Rating . | . . . . Part Schematics Acquired 1 | . . 1 . Parts Built . | . . . . Authchips . | . . . . Time . | . . . . Total Part Build Rating . | . . . . Parts Repaired 4 | . . 1 3 Time 172 | . . 26 146 Parts Recycled . | . . . . Recycled Matter . | . . . . Retrieved Matter . | . . . . Retrieved Components . | . . . . Parts Scanalyzed 1 | . . 1 . Part Schematics Acquired 1 | . . 1 . Parts Damaged . | . . . . Bothacking | -11 -10 -9 -8 ------------ Run | Yrd Mat Mat Mat Used RIF Installer . | . . . . Robots Hacked . | . . . . Non-combat . | . . . . Combat . | . . . . Robot Hacks Applied . | . . . . Relay Couplers Released . | . . . . Fabnet Peak Effective % . | . . . . Robots Rewired . | . . . . Allies Hacked . | . . . . Hacks Repelled . | . . . . Allies | -11 -10 -9 -8 -------- Run | Yrd Mat Mat Mat Total Allies . | . . . . Largest Group . | . . . . Highest-Rated Group . | . . . . Highest-Rated Ally . | . . . . Total Orders . | . . . . Ally Attacks . | . . . . Total Damage . | . . . . Kills . | . . . . Allies Corrupted . | . . . . Allies Melted . | . . . . Intel | -11 -10 -9 -8 ------- Run | Yrd Mat Mat Mat Robot Analysis Total 1 | . . 1 . Derelict Logs Recovered . | . . . . Drone Launches . | . . . . Drone Recoveries . | . . . . Exploration | -11 -10 -9 -8 ------------- Run | Yrd Mat Mat Mat Turns Passed 2776 | 120 688 995 973 Spaces Moved 1139 | 68 338 368 365 Core 56 | 14 1 . 41 Treads . | . . . . Legs 1083 | 54 337 368 324 Wheels . | . . . . Hover . | . . . . Flight . | . . . . Fastest Speed 50 | 50 120 120 50 Average Speed 129 | 107 121 121 148 Slowest Speed 400 | 120 200 190 400 Overloaded Moves . | . . . . Propulsion Burnouts . | . . . . Robots Hopped . | . . . . Cave-ins Triggered . | . . . . Exploration Rate (%) 33 | 5 52 30 46 Regions Visited 3 Branch Regions . Pre-discovered Areas . | . . . . Known Exits Taken . | . . . . Unknown Exits Taken 3 | 1 1 1 . Scrap Searched . | . . . . Spaces Dug . | . . . . Terrain Destroyed 60 | . 52 . 8 Melee . | . . . . Projectile . | . . . . AOE 60 | . 52 . 8 Terrain Rammed . | . . . . Walls Destroyed . | . . . . Machines Disabled . | . . . . Actions | -11 -10 -9 -8 --------- Run | Yrd Mat Mat Mat Total 2109 | 101 516 813 679 Wait 665 | 14 99 340 212 Move 1136 | 67 337 367 365 Hop . | . . . . Pick Up 51 | 7 15 22 7 Fast Attach 6 | . 1 . 5 Attach 32 | 6 6 6 14 Detach 1 | . . . 1 Swap 28 | . 3 12 13 Drop 23 | . 2 13 8 Fire 165 | 7 53 53 52 Melee . | . . . . Ram . | . . . . Kick 2 | . . . 2 Crush . | . . . . Escape Stasis . | . . . . Rewire . | . . . . Trap . | . . . . Miscellaneous . | . . . . Route ------- -11/Scrapyard -10/Materials (discovered 3 exits: *Mat x2 / [*Min]) -9/Materials -8/Materials History --------- Turn | Location | Event 2 | -11/Scrapyard | Discovered new exit (range 16) 121 | -11/Scrapyard | Entered Materials 312 | -10/Materials | Build established: Mutant 408 | -10/Materials | Discovered new exit (range 12) 525 | -10/Materials | Discovered new exit (range 15) 608 | -10/Materials | Core integrity fell below 50% 771 | -10/Materials | Discovered new exit (range 8) 809 | -10/Materials | Entered another Materials area 809 | -9/Materials | Evolved 2 slots: Propulsion x2 1082 | -9/Materials | Build established: Scavenger-Mutant 1235 | -9/Materials | Repaired Aluminum Leg 1778 | -9/Materials | Discovered new exit (range 7) 1804 | -9/Materials | Entered another Materials area 1804 | -8/Materials | Evolved 2 slots: Utility x1, Weapon x1 1984 | -8/Materials | Repaired Cooling System 2347 | -8/Materials | Repaired Broken Cooling System 2393 | -8/Materials | Repaired Lightning Gun 2559 | -8/Materials | Lost 3 parts (1p1n1w) 2649 | -8/Materials | Core integrity fell below 50% 2697 | -8/Materials | Lost 10 parts (1p4n1u4w) 2747 | -8/Materials | Core integrity fell below 20% 2777 | -8/Materials | Destroyed by Y-45 Defender with Heavy Assault Rifle Last Messages --------------- O-16 Technician: "IFF HANDSHAKE FAILED. SECURING TERMINAL." ALERT: Hostiles spotted, dispatching reinforcements to Terminal M003. T-07 Excavator is excavating. Critical hit (Burn: +37). Aluminum Leg destroyed. Aluminum Leg destroyed. W-25 Informer sends out distress signal. Deuterium Engine severed. U-05 Engineer destroyed. K-01 Serf collects debris. O-16 Technician: "IFF HANDSHAKE FAILED. SECURING TERMINAL." ALERT: Hostiles spotted, dispatching reinforcements to Terminal M002. Map ----- +----------------------------------------------------+ | ???# ##### | | ???#### ### [ #???# """ """ ### | | ?????# #?### ###???## """ """ ! #########???? | | ?????####???# #??????# """ """ ????????????? | | ????????????# +??????# """ """ #???????????? | | ????????????# # ?????# """ """ #???????????? | | ????????????# # ????# #???????????? | | ????????????# #? ????# #???????????? | | ????????????# #? ???# ######### #???????????? | | ????????????? #??##??# #????????? #??????????? | | ????????????? #??????# #??????????? #??????????? | | ????????????? ???????# #???????????????????????? | | ????????????? ???????# #???????????????????????? | | ?????????????+????#### #???????????????????????? | | ??????????????????+ #???????????????????????? | | ??????????????????#### #???????????????????????? | | ?????????????????????# #???????????????????????? | | ?????????????????????# #???????????????????????? | | ?????????????????????# #???????????????????????? | | ?????????????????????# #???????????????????????? | | ?????????????????????# #???????????????????????? | | ?????????????????????# #???????????????????????? | | ?????????????????????# #???????????????????????? | | ?????????????????????# #???????????????????????? | | ?????????????????##### ##+######???????????????? | | ?????????? @ #??????????? | | ?????????? Y #??????????? | | ?????????? #??????????? | | ??????????## ##########+###########??????????? | | ???????????#####?????????????????????????????????? | | ?????????????????????????????????????????????????? | | ?????????????????????????????????????????????????? | | ?????????????????????????????????????????????????? | | ?????????????????????????????????????????????????? | | ?????????????????????????????????????????????????? | | ?????????????????????????????????????????????????? | | ?????????????????????????????????????????????????? | | ?????????????????????????????????????????????????? | | ?????????????????????????????????????????????????? | | ?????????????????????????????????????????????????? | | ?????????????????????????????????????????????????? | | ?????????????????????????????????????????????????? | | ?????????????????????????????????????????????????? | | ?????????????????????????????????????????????????? | | ?????????????????????????????????????????????????? | | ?????????????????????????????????????????????????? | | ?????????????????????????????????????????????????? | | ?????????????????????????????????????????????????? | | ?????????????????????????????????????????????????? | | ?????????????????????????????????????????????????? | +----------------------------------------------------+ Best States ------------- Heat Dissipation 53 Energy Generation 14 Energy Capacity 275 Matter Stores 300 Matter Capacity 300 Sight Range 16 Terrain Scan Density 10 Evasion (%) 55 Item Schematics ----------------- Imp. Ion Engine | -9/Materials | Scanalyzed Robot Schematics ------------------ None Fabricated ------------ Nothing Alien Tech Used ----------------- None Achievements -------------- Power Corrupts Challenges ------------ None Game ------ Seed LargePowerCharger Manual? 0 Play Time 00:27:51 Cumulative 7.7 hours Start 2024.07.11 @ 13:52:27 End 2024.07.11 @ 14:20:10 Sessions 1 Manual Loads 0 Difficulty Rogue Special Mode None Game No. 14 Rogue 14 Adventurer 0 Explorer 0 Win Type - Total 0 Types 0/0/0/0/0/0/0/0/0 Lore% 11 Gallery% 13 Achievement% 13 Wizard Run 0 Options --------- Layout 1 ASCII 0 Keyboard 0 Movement Mouse Keybinds 0 Fullscreen 1 Font 24/Terminus Map View 50x35 Zoom Use 0% Tactical HUD 0 Map Filters NONE Filters NONE Steam 1 RUN: 6644665c-ce69-4640-8d09-05d5da1bdedf